[Event "Titled Tuesday Blitz November 22 Late 2022"]
[White "Suder, Jakub"]
[Black "Storey, Charles H"]
[WhiteFideId "1195310"]
[BlackFideId "406686"]
[WhiteElo "2646"]
[BlackElo "2432"]
[Result "1-0"]
[Round "03"]
[TimeControl "180+1"]
[Date "2022.11.23"]
[WhiteClock "0:00:48"]
[BlackClock "0:00:56"]

1. d4 {[%clk 0:03:00]}  g6 {[%clk 0:02:58]} 2. c4 {[%clk 0:03:01]}  Bg7 {[%clk 0:02:59]} 3. Nc3 {[%clk 0:03:01]}  c5 {[%clk 0:03:00]} 4. d5 {[%clk 0:03:01]}  e5 {[%clk 0:03:00]} 5. e4 {[%clk 0:02:59]}  d6 {[%clk 0:03:00]} 6. Bd3 {[%clk 0:02:58]}  Nd7 {[%clk 0:02:59]} 7. Nf3 {[%clk 0:02:54]}  Ne7 {[%clk 0:02:59]} 8. g4 {[%clk 0:02:53]}  h5 {[%clk 0:02:57]} 9. g5 {[%clk 0:02:52]}  a6 {[%clk 0:02:56]} 10. h4 {[%clk 0:02:51]}  O-O {[%clk 0:02:56]} 11. Be3 {[%clk 0:02:47]}  Rb8 {[%clk 0:02:55]} 12. a4 {[%clk 0:02:45]}  a5 {[%clk 0:02:55]} 13. Ne2 {[%clk 0:02:39]}  Nb6 {[%clk 0:02:54]} 14. b3 {[%clk 0:02:37]}  Na8 {[%clk 0:02:53]} 15. Qd2 {[%clk 0:02:30]}  b6 {[%clk 0:02:51]} 16. O-O-O {[%clk 0:02:28]}  Nc7 {[%clk 0:02:51]} 17. Kb1 {[%clk 0:02:21]}  Na6 {[%clk 0:02:50]} 18. Ng3 {[%clk 0:02:20]}  Nb4 {[%clk 0:02:50]} 19. Ne1 {[%clk 0:02:18]}  Nxd3 {[%clk 0:02:41]} 20. Nxd3 {[%clk 0:02:17]}  Bg4 {[%clk 0:02:38]} 21. Rdg1 {[%clk 0:02:15]}  Kh7 {[%clk 0:02:23]} 22. Ne1 {[%clk 0:02:15]}  Qe8 {[%clk 0:02:21]} 23. f3 {[%clk 0:02:15]}  Bd7 {[%clk 0:02:21]} 24. Qe2 {[%clk 0:02:15]}  Bxa4 {[%clk 0:02:15]} 25. bxa4 {[%clk 0:02:13]}  Qxa4 {[%clk 0:02:16]} 26. Qa2 {[%clk 0:01:44]}  Qb4+ {[%clk 0:02:08]} 27. Kc2 {[%clk 0:01:44]}  a4 {[%clk 0:01:53]} 28. Bd2 {[%clk 0:01:39]}  Qb3+ {[%clk 0:01:48]} 29. Qxb3 {[%clk 0:01:39]}  axb3+ {[%clk 0:01:49]} 30. Kxb3 {[%clk 0:01:40]}  b5 {[%clk 0:01:50]} 31. Nd3 {[%clk 0:01:33]}  Nc8 {[%clk 0:01:41]} 32. cxb5 {[%clk 0:01:31]}  Rxb5+ {[%clk 0:01:41]} 33. Kc4 {[%clk 0:01:32]}  Rb7 {[%clk 0:01:32]} 34. Rb1 {[%clk 0:01:32]}  Nb6+ {[%clk 0:01:32]} 35. Kc3 {[%clk 0:01:32]}  Rfb8 {[%clk 0:01:26]} 36. Kc2 {[%clk 0:01:32]}  Nc4 {[%clk 0:01:23]} 37. Rxb7 {[%clk 0:01:30]}  Rxb7 {[%clk 0:01:24]} 38. Ra1 {[%clk 0:01:26]}  f6 {[%clk 0:01:16]} 39. Bc1 {[%clk 0:01:13]}  fxg5 {[%clk 0:01:07]} 40. Bxg5 {[%clk 0:01:14]}  Bh6 {[%clk 0:01:04]} 41. Bxh6 {[%clk 0:01:11]}  Kxh6 {[%clk 0:01:05]} 42. Nf1 {[%clk 0:01:10]}  g5 {[%clk 0:01:02]} 43. hxg5+ {[%clk 0:01:09]}  Kxg5 {[%clk 0:01:02]} 44. Ra4 {[%clk 0:01:09]}  Nb6 {[%clk 0:01:00]} 45. Ra6 {[%clk 0:01:08]}  h4 {[%clk 0:00:58]} 46. Nf2 {[%clk 0:00:47]}  Kf4 {[%clk 0:00:57]} 47. Ra3 {[%clk 0:00:48]}  Nc4 {[%clk 0:00:56]} 48. Nh3# {[%clk 0:00:48]} 1-0


[Site "https://www.chess.com"]

[Event "Titled Tuesday Blitz November 22 Late 2022"]
[White "Svane, Rasmus"]
[Black "Yuan, Qingyu"]
[WhiteFideId "4657101"]
[BlackFideId "8609772"]
[WhiteElo "2674"]
[BlackElo "2359"]
[Result "0-1"]
[Round "03"]
[TimeControl "180+1"]
[Date "2022.11.22"]
[WhiteClock "0:00:01"]
[BlackClock "0:00:06"]

1. Nf3 {[%clk 0:03:00]}  d5 {[%clk 0:02:58]} 2. g3 {[%clk 0:03:00]}  c5 {[%clk 0:02:58]} 3. Bg2 {[%clk 0:03:00]}  Nc6 {[%clk 0:02:58]} 4. d4 {[%clk 0:03:00]}  Nf6 {[%clk 0:02:59]} 5. O-O {[%clk 0:03:01]}  e6 {[%clk 0:02:59]} 6. c4 {[%clk 0:02:59]}  dxc4 {[%clk 0:02:59]} 7. Qa4 {[%clk 0:02:54]}  Bd7 {[%clk 0:02:59]} 8. Qxc4 {[%clk 0:02:54]}  b5 {[%clk 0:02:59]} 9. Qc3 {[%clk 0:02:54]}  b4 {[%clk 0:02:59]} 10. Qd3 {[%clk 0:02:53]}  Rc8 {[%clk 0:02:54]} 11. dxc5 {[%clk 0:02:42]}  Bxc5 {[%clk 0:02:55]} 12. Be3 {[%clk 0:02:43]}  Bxe3 {[%clk 0:02:55]} 13. Qxe3 {[%clk 0:02:44]}  Qb6 {[%clk 0:02:56]} 14. Qxb6 {[%clk 0:02:38]}  axb6 {[%clk 0:02:56]} 15. Nbd2 {[%clk 0:02:39]}  Na5 {[%clk 0:02:37]} 16. Ne5 {[%clk 0:02:15]}  Rc2 {[%clk 0:02:29]} 17. Rfd1 {[%clk 0:01:55]}  Ke7 {[%clk 0:01:55]} 18. Nd3 {[%clk 0:01:30]}  Bb5 {[%clk 0:01:42]} 19. Nxb4 {[%clk 0:01:22]}  Rxb2 {[%clk 0:01:41]} 20. Nd3 {[%clk 0:01:16]}  Bxd3 {[%clk 0:01:32]} 21. exd3 {[%clk 0:01:17]}  Rc8 {[%clk 0:01:20]} 22. Rab1 {[%clk 0:01:01]}  Rxa2 {[%clk 0:01:14]} 23. Rxb6 {[%clk 0:01:00]}  Rcc2 {[%clk 0:01:14]} 24. Ra6 {[%clk 0:00:52]}  Rxd2 {[%clk 0:00:56]} 25. Rxd2 {[%clk 0:00:52]}  Rxd2 {[%clk 0:00:57]} 26. Rxa5 {[%clk 0:00:53]}  Ng4 {[%clk 0:00:57]} 27. Ra7+ {[%clk 0:00:44]}  Kf6 {[%clk 0:00:56]} 28. Bc6 {[%clk 0:00:43]}  Ne5 {[%clk 0:00:20]} 29. Be8 {[%clk 0:00:38]}  g5 {[%clk 0:00:21]} 30. f4 {[%clk 0:00:37]}  Nf3+ {[%clk 0:00:20]} 31. Kf1 {[%clk 0:00:37]}  Nxh2+ {[%clk 0:00:20]} 32. Ke1 {[%clk 0:00:38]}  Nf3+ {[%clk 0:00:21]} 33. Kf1 {[%clk 0:00:38]}  Kf5 {[%clk 0:00:07]} 34. Rxf7+ {[%clk 0:00:38]}  Kg4 {[%clk 0:00:08]} 35. Bc6 {[%clk 0:00:27]}  Kxg3 {[%clk 0:00:08]} 36. Bxf3 {[%clk 0:00:25]}  Rf2+ {[%clk 0:00:08]} 37. Ke1 {[%clk 0:00:25]}  Rxf3 {[%clk 0:00:09]} 38. Rxh7 {[%clk 0:00:18]}  Kxf4 {[%clk 0:00:09]} 39. Ke2 {[%clk 0:00:14]}  Re3+ {[%clk 0:00:09]} 40. Kd2 {[%clk 0:00:15]}  Re5 {[%clk 0:00:09]} 41. d4 {[%clk 0:00:12]}  Re4 {[%clk 0:00:09]} 42. Kd3 {[%clk 0:00:11]}  Re3+ {[%clk 0:00:09]} 43. Kd2 {[%clk 0:00:12]}  Ke4 {[%clk 0:00:07]} 44. d5 {[%clk 0:00:07]}  Rd3+ {[%clk 0:00:07]} 45. Ke2 {[%clk 0:00:07]}  Rxd5 {[%clk 0:00:07]} 46. Rg7 {[%clk 0:00:07]}  Rf5 {[%clk 0:00:08]} 47. Rg6 {[%clk 0:00:06]}  e5 {[%clk 0:00:08]} 48. Rg8 {[%clk 0:00:05]}  Kf4 {[%clk 0:00:07]} 49. Kf2 {[%clk 0:00:06]}  e4 {[%clk 0:00:07]} 50. Re8 {[%clk 0:00:06]}  g4 {[%clk 0:00:08]} 51. Re7 {[%clk 0:00:06]}  g3+ {[%clk 0:00:08]} 52. Ke2 {[%clk 0:00:04]}  Rg5 {[%clk 0:00:08]} 53. Rf7+ {[%clk 0:00:04]}  Ke5 {[%clk 0:00:08]} 54. Kf1 {[%clk 0:00:03]}  g2+ {[%clk 0:00:07]} 55. Kg1 {[%clk 0:00:04]}  Rg8 {[%clk 0:00:08]} 56. Re7+ {[%clk 0:00:03]}  Kd4 {[%clk 0:00:08]} 57. Rd7+ {[%clk 0:00:03]}  Kc4 {[%clk 0:00:09]} 58. Rc7+ {[%clk 0:00:04]}  Kd5 {[%clk 0:00:09]} 59. Rd7+ {[%clk 0:00:04]}  Kc5 {[%clk 0:00:10]} 60. Re7 {[%clk 0:00:04]}  Kd4 {[%clk 0:00:10]} 61. Rd7+ {[%clk 0:00:05]}  Ke3 {[%clk 0:00:11]} 62. Re7 {[%clk 0:00:05]}  Kf3 {[%clk 0:00:11]} 63. Rf7+ {[%clk 0:00:06]}  Ke2 {[%clk 0:00:11]} 64. Re7 {[%clk 0:00:06]}  e3 {[%clk 0:00:11]} 65. Re6 {[%clk 0:00:05]}  Kd2 {[%clk 0:00:11]} 66. Rd6+ {[%clk 0:00:05]}  Ke1 {[%clk 0:00:11]} 67. Rd4 {[%clk 0:00:05]}  e2 {[%clk 0:00:11]} 68. Rd6 {[%clk 0:00:05]}  Rg5 {[%clk 0:00:09]} 69. Rd4 {[%clk 0:00:04]}  Rg7 {[%clk 0:00:07]} 70. Rd6 {[%clk 0:00:05]}  Ra7 {[%clk 0:00:06]} 71. Rd5 {[%clk 0:00:03]}  Ra2 {[%clk 0:00:06]} 72. Rb5 {[%clk 0:00:02]}  Kd1 {[%clk 0:00:06]} 73. Rd5+ {[%clk 0:00:02]}  Rd2 {[%clk 0:00:06]} 74. Rf5 {[%clk 0:00:01]}  e1=Q+ {[%clk 0:00:06]} 75. Kh2 {[%clk 0:00:01]} 0-1


[Site "https://www.chess.com"]

[Event "Titled Tuesday Blitz November 22 Late 2022"]
[White "Swiercz, Dariusz"]
[Black "Ozdemir, Serhan Berat"]
[WhiteFideId "1126881"]
[BlackFideId "6374611"]
[WhiteElo "2923"]
[BlackElo "2530"]
[Result "1-0"]
[Round "03"]
[TimeControl "180+1"]
[Date "2022.11.23"]
[WhiteClock "0:01:30"]
[BlackClock "0:00:02"]

1. e4 {[%clk 0:02:55]}  c5 {[%clk 0:03:00]} 2. Nf3 {[%clk 0:02:55]}  e6 {[%clk 0:03:00]} 3. d4 {[%clk 0:02:56]}  cxd4 {[%clk 0:03:01]} 4. Nxd4 {[%clk 0:02:57]}  a6 {[%clk 0:03:02]} 5. g3 {[%clk 0:02:55]}  Nc6 {[%clk 0:02:58]} 6. Bg2 {[%clk 0:02:55]}  Qc7 {[%clk 0:02:58]} 7. O-O {[%clk 0:02:52]}  Nf6 {[%clk 0:02:57]} 8. Re1 {[%clk 0:02:49]}  d6 {[%clk 0:01:55]} 9. Nxc6 {[%clk 0:02:46]}  bxc6 {[%clk 0:01:55]} 10. c4 {[%clk 0:02:46]}  e5 {[%clk 0:01:41]} 11. Nc3 {[%clk 0:02:42]}  Be7 {[%clk 0:01:39]} 12. b3 {[%clk 0:02:34]}  O-O {[%clk 0:01:38]} 13. Na4 {[%clk 0:02:34]}  Rd8 {[%clk 0:01:28]} 14. Qd3 {[%clk 0:02:33]}  Rb8 {[%clk 0:01:21]} 15. Bd2 {[%clk 0:02:27]}  Bb7 {[%clk 0:00:54]} 16. Rac1 {[%clk 0:02:25]}  Ba8 {[%clk 0:00:52]} 17. Qe2 {[%clk 0:02:20]}  Qd7 {[%clk 0:00:50]} 18. Red1 {[%clk 0:02:18]}  Qe6 {[%clk 0:00:42]} 19. Qf1 {[%clk 0:02:03]}  d5 {[%clk 0:00:29]} 20. Ba5 {[%clk 0:02:03]}  dxe4 {[%clk 0:00:20]} 21. Bxd8 {[%clk 0:02:02]}  Bxd8 {[%clk 0:00:20]} 22. Nc5 {[%clk 0:02:01]}  Qe7 {[%clk 0:00:19]} 23. Nxe4 {[%clk 0:02:01]}  Bb6 {[%clk 0:00:17]} 24. c5 {[%clk 0:01:57]}  Ba5 {[%clk 0:00:13]} 25. Qxa6 {[%clk 0:01:51]}  Bb4 {[%clk 0:00:10]} 26. Nxf6+ {[%clk 0:01:40]}  Qxf6 {[%clk 0:00:11]} 27. Qa7 {[%clk 0:01:34]}  Re8 {[%clk 0:00:02]} 28. a3 {[%clk 0:01:30]} 1-0


[Site "https://www.chess.com"]

[Event "Titled Tuesday Blitz November 22 Late 2022"]
[White "Sztokbant, Bernardo Vainzoff"]
[Black "Jarmula, Lukasz"]
[WhiteFideId "2115956"]
[BlackFideId "1160664"]
[WhiteElo "2444"]
[BlackElo "2665"]
[Result "0-1"]
[Round "03"]
[TimeControl "180+1"]
[Date "2022.11.23"]
[WhiteClock "0:00:03"]
[BlackClock "0:00:12"]

1. b3 {[%clk 0:03:00]}  e5 {[%clk 0:02:57]} 2. Bb2 {[%clk 0:03:00]}  Nc6 {[%clk 0:02:58]} 3. e3 {[%clk 0:03:00]}  d5 {[%clk 0:02:58]} 4. Nf3 {[%clk 0:03:01]}  e4 {[%clk 0:02:57]} 5. Nd4 {[%clk 0:03:00]}  Nxd4 {[%clk 0:02:56]} 6. Bxd4 {[%clk 0:03:01]}  Nf6 {[%clk 0:02:54]} 7. Bb2 {[%clk 0:03:00]}  Be7 {[%clk 0:02:53]} 8. d3 {[%clk 0:03:00]}  O-O {[%clk 0:02:52]} 9. Nd2 {[%clk 0:03:01]}  exd3 {[%clk 0:02:51]} 10. Bxd3 {[%clk 0:03:02]}  Bg4 {[%clk 0:02:49]} 11. Nf3 {[%clk 0:03:01]}  Bb4+ {[%clk 0:02:47]} 12. c3 {[%clk 0:03:01]}  Bd6 {[%clk 0:02:47]} 13. h3 {[%clk 0:03:01]}  Bh5 {[%clk 0:02:46]} 14. O-O {[%clk 0:03:02]}  Qe7 {[%clk 0:02:37]} 15. c4 {[%clk 0:03:01]}  dxc4 {[%clk 0:02:37]} 16. Bxc4 {[%clk 0:03:02]}  Rad8 {[%clk 0:02:36]} 17. Qc2 {[%clk 0:03:02]}  Bg6 {[%clk 0:02:34]} 18. Qe2 {[%clk 0:03:02]}  Ne4 {[%clk 0:02:31]} 19. Rfd1 {[%clk 0:02:58]}  c6 {[%clk 0:02:26]} 20. Bd3 {[%clk 0:02:50]}  Bc7 {[%clk 0:02:19]} 21. Bxe4 {[%clk 0:02:41]}  Bxe4 {[%clk 0:02:16]} 22. Rxd8 {[%clk 0:02:41]}  Rxd8 {[%clk 0:02:16]} 23. Rd1 {[%clk 0:02:42]}  Rxd1+ {[%clk 0:02:10]} 24. Qxd1 {[%clk 0:02:43]}  h6 {[%clk 0:02:01]} 25. Qd4 {[%clk 0:02:42]}  f6 {[%clk 0:01:59]} 26. Nd2 {[%clk 0:02:38]}  Bd5 {[%clk 0:01:57]} 27. Qxa7 {[%clk 0:02:31]}  Qd6 {[%clk 0:01:53]} 28. Nf1 {[%clk 0:02:28]}  b5 {[%clk 0:01:38]} 29. Qd4 {[%clk 0:02:26]}  c5 {[%clk 0:01:35]} 30. Qg4 {[%clk 0:02:22]}  Be6 {[%clk 0:01:31]} 31. Qg6 {[%clk 0:02:09]}  Bf7 {[%clk 0:01:31]} 32. Qf5 {[%clk 0:02:05]}  Be6 {[%clk 0:01:28]} 33. Qg6 {[%clk 0:02:01]}  Bf7 {[%clk 0:01:24]} 34. Qf5 {[%clk 0:02:00]}  c4 {[%clk 0:01:22]} 35. Qxb5 {[%clk 0:01:58]}  cxb3 {[%clk 0:01:09]} 36. axb3 {[%clk 0:01:59]}  Qd1 {[%clk 0:01:07]} 37. Qc6 {[%clk 0:01:29]}  Bd6 {[%clk 0:01:06]} 38. Bd4 {[%clk 0:01:07]}  Bf8 {[%clk 0:01:04]} 39. Qc8 {[%clk 0:00:50]}  Qh5 {[%clk 0:00:54]} 40. b4 {[%clk 0:00:47]}  Be8 {[%clk 0:00:32]} 41. Ng3 {[%clk 0:00:41]}  Qf7 {[%clk 0:00:30]} 42. Bc5 {[%clk 0:00:37]}  Bxc5 {[%clk 0:00:29]} 43. bxc5 {[%clk 0:00:38]}  Kh7 {[%clk 0:00:27]} 44. c6 {[%clk 0:00:34]}  Qe7 {[%clk 0:00:23]} 45. Nf5 {[%clk 0:00:30]}  Qe5 {[%clk 0:00:21]} 46. c7 {[%clk 0:00:26]}  Qa1+ {[%clk 0:00:19]} 47. Kh2 {[%clk 0:00:26]}  Qe5+ {[%clk 0:00:20]} 48. f4 {[%clk 0:00:26]}  Qe4 {[%clk 0:00:14]} 49. Qd8 {[%clk 0:00:14]}  Bc6 {[%clk 0:00:13]} 50. Nh4 {[%clk 0:00:09]}  Qxe3 {[%clk 0:00:13]} 51. c8=Q {[%clk 0:00:03]}  Qxf4+ {[%clk 0:00:13]} 52. Kg1 {[%clk 0:00:03]}  Qe3+ {[%clk 0:00:13]} 53. Kf1 {[%clk 0:00:03]}  Bb5+ {[%clk 0:00:12]} 0-1


[Site "https://www.chess.com"]

[Event "Titled Tuesday Blitz November 22 Late 2022"]
[White "Szyszylo, Rafal"]
[Black "Antonio, Jorge Carlos"]
[WhiteFideId "1109626"]
[BlackFideId "113190"]
[WhiteElo "1981"]
[BlackElo "2247"]
[Result "1-0"]
[Round "03"]
[TimeControl "180+1"]
[Date "2022.11.23"]
[WhiteClock "0:00:16"]
[BlackClock "0:00:20"]

1. e4 {[%clk 0:03:00]}  c5 {[%clk 0:02:57]} 2. Nf3 {[%clk 0:03:00]}  e6 {[%clk 0:02:57]} 3. d4 {[%clk 0:02:59]}  cxd4 {[%clk 0:02:57]} 4. Nxd4 {[%clk 0:03:00]}  Nc6 {[%clk 0:02:56]} 5. Nc3 {[%clk 0:02:59]}  a6 {[%clk 0:02:56]} 6. a3 {[%clk 0:02:58]}  Nf6 {[%clk 0:02:56]} 7. Bc4 {[%clk 0:02:56]}  Qa5 {[%clk 0:02:53]} 8. O-O {[%clk 0:02:52]}  Be7 {[%clk 0:02:44]} 9. Nxc6 {[%clk 0:02:33]}  bxc6 {[%clk 0:02:43]} 10. Qe2 {[%clk 0:02:17]}  d5 {[%clk 0:02:40]} 11. Bd3 {[%clk 0:02:09]}  O-O {[%clk 0:02:33]} 12. Bd2 {[%clk 0:02:10]}  Qb6 {[%clk 0:02:32]} 13. b3 {[%clk 0:02:09]}  d4 {[%clk 0:02:28]} 14. Na4 {[%clk 0:02:09]}  Qc7 {[%clk 0:02:27]} 15. f4 {[%clk 0:02:04]}  c5 {[%clk 0:02:17]} 16. Nb2 {[%clk 0:01:58]}  e5 {[%clk 0:02:06]} 17. f5 {[%clk 0:01:57]}  a5 {[%clk 0:02:04]} 18. a4 {[%clk 0:01:50]}  Qd6 {[%clk 0:01:58]} 19. g4 {[%clk 0:01:51]}  h6 {[%clk 0:01:54]} 20. h4 {[%clk 0:01:45]}  Nh7 {[%clk 0:01:54]} 21. Nc4 {[%clk 0:01:41]}  Qc7 {[%clk 0:01:51]} 22. Qh2 {[%clk 0:01:39]}  f6 {[%clk 0:01:49]} 23. Na3 {[%clk 0:01:34]}  Ba6 {[%clk 0:01:48]} 24. Nb5 {[%clk 0:01:32]}  Bxb5 {[%clk 0:01:48]} 25. Bxb5 {[%clk 0:01:32]}  Qb7 {[%clk 0:01:42]} 26. Bc4+ {[%clk 0:01:32]}  Kh8 {[%clk 0:01:40]} 27. Rae1 {[%clk 0:01:32]}  Qc7 {[%clk 0:01:27]} 28. Rf2 {[%clk 0:01:08]}  Rab8 {[%clk 0:01:26]} 29. Rg2 {[%clk 0:01:07]}  Rb4 {[%clk 0:01:26]} 30. Bd5 {[%clk 0:01:05]}  c4 {[%clk 0:01:24]} 31. Bxb4 {[%clk 0:00:53]}  Bxb4 {[%clk 0:01:18]} 32. Rf1 {[%clk 0:00:52]}  cxb3 {[%clk 0:01:16]} 33. cxb3 {[%clk 0:00:51]}  Qc3 {[%clk 0:01:14]} 34. Qg3 {[%clk 0:00:41]}  Qxg3 {[%clk 0:01:12]} 35. Rxg3 {[%clk 0:00:41]}  Rc8 {[%clk 0:01:10]} 36. Bc4 {[%clk 0:00:42]}  Bd2 {[%clk 0:01:04]} 37. Kf2 {[%clk 0:00:41]}  Bc3 {[%clk 0:01:02]} 38. Ke2 {[%clk 0:00:41]}  Nf8 {[%clk 0:01:02]} 39. Kd3 {[%clk 0:00:40]}  Nd7 {[%clk 0:01:00]} 40. g5 {[%clk 0:00:41]}  Nc5+ {[%clk 0:00:59]} 41. Kc2 {[%clk 0:00:41]}  Nxe4 {[%clk 0:00:58]} 42. Rg4 {[%clk 0:00:41]}  Nd6 {[%clk 0:00:51]} 43. Be6 {[%clk 0:00:40]}  Rb8 {[%clk 0:00:46]} 44. gxf6 {[%clk 0:00:39]}  gxf6 {[%clk 0:00:46]} 45. Rg6 {[%clk 0:00:38]}  Kh7 {[%clk 0:00:39]} 46. Rfg1 {[%clk 0:00:37]}  Rb7 {[%clk 0:00:39]} 47. Rxf6 {[%clk 0:00:20]}  e4 {[%clk 0:00:39]} 48. Bd5 {[%clk 0:00:20]}  d3+ {[%clk 0:00:38]} 49. Kxc3 {[%clk 0:00:19]}  Rc7+ {[%clk 0:00:30]} 50. Kd4 {[%clk 0:00:20]}  d2 {[%clk 0:00:26]} 51. Rxd6 {[%clk 0:00:15]}  Rc1 {[%clk 0:00:22]} 52. Rd7+ {[%clk 0:00:15]}  Kh8 {[%clk 0:00:20]} 53. Rg8# {[%clk 0:00:16]} 1-0


[Site "https://www.chess.com"]

[Event "Titled Tuesday Blitz November 22 Late 2022"]
[White "Toncheva, Nadya"]
[Black "Bogaudinov, Rushan"]
[WhiteFideId "2924056"]
[BlackFideId "4129288"]
[WhiteElo "2101"]
[BlackElo "1997"]
[Result "0-1"]
[Round "03"]
[TimeControl "180+1"]
[Date "2022.11.23"]
[WhiteClock "0:00:04"]
[BlackClock "0:00:11"]

1. e4 {[%clk 0:03:00]}  a6 {[%clk 0:02:56]} 2. Nf3 {[%clk 0:02:54]}  e6 {[%clk 0:02:54]} 3. d4 {[%clk 0:02:51]}  d5 {[%clk 0:02:52]} 4. e5 {[%clk 0:02:48]}  c5 {[%clk 0:02:51]} 5. c3 {[%clk 0:02:47]}  Nc6 {[%clk 0:02:52]} 6. Bd3 {[%clk 0:02:47]}  b5 {[%clk 0:02:50]} 7. O-O {[%clk 0:02:47]}  b4 {[%clk 0:02:47]} 8. Be3 {[%clk 0:02:38]}  Nge7 {[%clk 0:02:46]} 9. dxc5 {[%clk 0:02:37]}  Ng6 {[%clk 0:02:43]} 10. Bd4 {[%clk 0:02:34]}  Qc7 {[%clk 0:02:38]} 11. Re1 {[%clk 0:02:28]}  Be7 {[%clk 0:02:34]} 12. a3 {[%clk 0:02:15]}  bxc3 {[%clk 0:02:28]} 13. Nxc3 {[%clk 0:01:55]}  Nxd4 {[%clk 0:02:27]} 14. Nxd4 {[%clk 0:01:54]}  Bxc5 {[%clk 0:02:16]} 15. Nf3 {[%clk 0:01:52]}  Bd7 {[%clk 0:02:02]} 16. Rc1 {[%clk 0:01:48]}  Qa7 {[%clk 0:02:02]} 17. Qd2 {[%clk 0:01:32]}  O-O {[%clk 0:01:49]} 18. h4 {[%clk 0:01:28]}  f6 {[%clk 0:01:41]} 19. exf6 {[%clk 0:01:25]}  Rxf6 {[%clk 0:01:39]} 20. Nd1 {[%clk 0:01:09]}  Raf8 {[%clk 0:01:37]} 21. h5 {[%clk 0:00:47]}  Nf4 {[%clk 0:01:28]} 22. Ne5 {[%clk 0:00:35]}  Nxd3 {[%clk 0:01:14]} 23. Nxd3 {[%clk 0:00:34]}  Bd4 {[%clk 0:01:05]} 24. Ne5 {[%clk 0:00:28]}  Bxf2+ {[%clk 0:00:47]} 25. Nxf2 {[%clk 0:00:24]}  Rxf2 {[%clk 0:00:44]} 26. Qg5 {[%clk 0:00:08]}  Rf1+ {[%clk 0:00:38]} 27. Kh2 {[%clk 0:00:08]}  Qg1+ {[%clk 0:00:38]} 28. Kg3 {[%clk 0:00:06]}  Rxe1 {[%clk 0:00:31]} 29. Nxd7 {[%clk 0:00:06]}  Qf2+ {[%clk 0:00:27]} 30. Kh2 {[%clk 0:00:06]}  Rxc1 {[%clk 0:00:24]} 31. Nxf8 {[%clk 0:00:05]}  Qg1+ {[%clk 0:00:21]} 32. Kg3 {[%clk 0:00:04]}  Kxf8 {[%clk 0:00:19]} 33. Qd8+ {[%clk 0:00:04]}  Kf7 {[%clk 0:00:19]} 34. Qd7+ {[%clk 0:00:05]}  Kf6 {[%clk 0:00:19]} 35. Qd8+ {[%clk 0:00:05]}  Ke5 {[%clk 0:00:18]} 36. Qg5+ {[%clk 0:00:04]}  Kd4 {[%clk 0:00:16]} 37. Qxg7+ {[%clk 0:00:05]}  e5 {[%clk 0:00:15]} 38. Qa7+ {[%clk 0:00:05]}  Ke4 {[%clk 0:00:14]} 39. Qxh7+ {[%clk 0:00:03]}  Ke3 {[%clk 0:00:14]} 40. Qa7+ {[%clk 0:00:04]}  d4 {[%clk 0:00:13]} 41. Qxa6 {[%clk 0:00:04]}  Qf2+ {[%clk 0:00:13]} 42. Kg4 {[%clk 0:00:05]}  Qf4+ {[%clk 0:00:12]} 43. Kh3 {[%clk 0:00:04]}  Rh1# {[%clk 0:00:11]} 0-1


[Site "https://www.chess.com"]

[Event "Titled Tuesday Blitz November 22 Late 2022"]
[White "Vargas, Mauricio"]
[Black "Milosevic, Milos"]
[WhiteFideId "4404572"]
[BlackFideId "964875"]
[WhiteElo "2025"]
[BlackElo "2321"]
[Result "0-1"]
[Round "03"]
[TimeControl "180+1"]
[Date "2022.11.23"]
[WhiteClock "0:00:04"]
[BlackClock "0:00:07"]

1. e4 {[%clk 0:03:00]}  d6 {[%clk 0:02:58]} 2. f4 {[%clk 0:02:59]}  Nf6 {[%clk 0:02:59]} 3. Nc3 {[%clk 0:02:59]}  e5 {[%clk 0:02:57]} 4. d3 {[%clk 0:02:56]}  g6 {[%clk 0:02:54]} 5. g3 {[%clk 0:02:55]}  Bg7 {[%clk 0:02:54]} 6. Nf3 {[%clk 0:02:55]}  Nc6 {[%clk 0:02:53]} 7. Bg2 {[%clk 0:02:55]}  O-O {[%clk 0:02:53]} 8. O-O {[%clk 0:02:55]}  h6 {[%clk 0:02:49]} 9. h3 {[%clk 0:02:55]}  Re8 {[%clk 0:02:45]} 10. Qe1 {[%clk 0:02:55]}  Nd4 {[%clk 0:02:39]} 11. Rf2 {[%clk 0:02:49]}  c5 {[%clk 0:02:31]} 12. Be3 {[%clk 0:02:48]}  b6 {[%clk 0:02:24]} 13. Nd1 {[%clk 0:02:47]}  Bb7 {[%clk 0:02:23]} 14. c3 {[%clk 0:02:46]}  Nxf3+ {[%clk 0:02:23]} 15. Bxf3 {[%clk 0:02:43]}  d5 {[%clk 0:01:58]} 16. fxe5 {[%clk 0:02:30]}  Rxe5 {[%clk 0:01:57]} 17. Bf4 {[%clk 0:02:30]}  Re6 {[%clk 0:01:48]} 18. e5 {[%clk 0:02:19]}  g5 {[%clk 0:01:37]} 19. Bd2 {[%clk 0:02:11]}  Qc7 {[%clk 0:01:31]} 20. d4 {[%clk 0:02:09]}  Ne4 {[%clk 0:01:31]} 21. Re2 {[%clk 0:01:57]}  f5 {[%clk 0:01:17]} 22. Ne3 {[%clk 0:01:50]}  Rf8 {[%clk 0:01:15]} 23. g4 {[%clk 0:01:43]}  f4 {[%clk 0:01:02]} 24. Nf5 {[%clk 0:01:42]}  Ree8 {[%clk 0:00:44]} 25. Nd6 {[%clk 0:01:34]}  Nxd6 {[%clk 0:00:35]} 26. exd6 {[%clk 0:01:32]}  Rxe2 {[%clk 0:00:29]} 27. Qxe2 {[%clk 0:01:29]}  Qxd6 {[%clk 0:00:28]} 28. Re1 {[%clk 0:01:18]}  cxd4 {[%clk 0:00:27]} 29. c4 {[%clk 0:01:14]}  Qc5 {[%clk 0:00:19]} 30. Kg2 {[%clk 0:01:11]}  d3 {[%clk 0:00:14]} 31. Qe6+ {[%clk 0:01:10]}  Kh8 {[%clk 0:00:14]} 32. cxd5 {[%clk 0:01:01]}  Bc8 {[%clk 0:00:15]} 33. Qg6 {[%clk 0:00:57]}  Bd7 {[%clk 0:00:13]} 34. Be4 {[%clk 0:00:55]}  Kg8 {[%clk 0:00:07]} 35. Qh7+ {[%clk 0:00:49]}  Kf7 {[%clk 0:00:07]} 36. Bg6+ {[%clk 0:00:49]}  Kf6 {[%clk 0:00:07]} 37. Bc3+ {[%clk 0:00:49]}  Qxc3 {[%clk 0:00:07]} 38. bxc3 {[%clk 0:00:49]}  Rh8 {[%clk 0:00:07]} 39. Bxd3 {[%clk 0:00:35]}  Rxh7 {[%clk 0:00:06]} 40. Bxh7 {[%clk 0:00:35]}  Bf8 {[%clk 0:00:06]} 41. Bc2 {[%clk 0:00:31]}  Bc5 {[%clk 0:00:06]} 42. Bb3 {[%clk 0:00:30]}  a5 {[%clk 0:00:05]} 43. Rf1 {[%clk 0:00:22]}  Ke5 {[%clk 0:00:05]} 44. Re1+ {[%clk 0:00:20]}  Be3 {[%clk 0:00:04]} 45. Kf3 {[%clk 0:00:20]}  a4 {[%clk 0:00:05]} 46. Bc2 {[%clk 0:00:17]}  Kxd5 {[%clk 0:00:05]} 47. Be4+ {[%clk 0:00:17]}  Kc4 {[%clk 0:00:05]} 48. Rc1 {[%clk 0:00:13]}  Bxc1 {[%clk 0:00:04]} 49. Bh7 {[%clk 0:00:08]}  Kxc3 {[%clk 0:00:05]} 50. Bg8 {[%clk 0:00:05]}  Bc6+ {[%clk 0:00:06]} 51. Ke2 {[%clk 0:00:04]}  f3+ {[%clk 0:00:06]} 52. Kf2 {[%clk 0:00:04]}  Kd4 {[%clk 0:00:07]} 0-1


[Site "https://www.chess.com"]